[Event "US Masters 2022"]
[Site "Charlotte"]
[Date "2022.11.24"]
[Round "1.9"]
[White "Yoo, Christopher Woojin"]
[Black "Mishra, Prateek"]
[Result "1-0"]
[ECO "C52"]
[WhiteElo "2573"]
[BlackElo "2213"]
[Annotator "TA"]
[PlyCount "145"]
[EventDate "2022.11.23"]
[EventType "swiss"]
[EventCountry "USA"]
[SourceTitle "playchess.com"]
[Source "ChessBase"]
[SourceQuality "1"]
[TimeControl "5400+30"]

{[%evp 14,145,-12,-24,-14,-18,-7,-14,-20,-7,-14,-16,-15,-13,-10,-13,0,-14,-14,-14,-14,-11,-16,-16,-19,-26,-10,-80,-68,-45,-66,-125,-120,-145,-30,-22,-22,-26,-20,-43,-27,-25,0,-11,-21,-22,0,0,0,0,8,8,8,8,8,8,236,71,71,59,59,59,59,59,59,59,59,59,59,59,59,59,59,59,59,59,59,59,60,59,67,60,60,0,59,59,59,59,59,59,59,59,1561,1340,843,550,29949,29952,29949,29954,29957,29948,29945,12009,29954,29961,29961,29957,29956,29955,29946,12791,11836,8625,29967,29968,29968,29969,29969,29969,29963,29968,29968,29969,29969,29964,29967,29963,29958,29960,12799,11642,5049,839]} 1. e4 {[%emt 0:00:17]} e5 {[%emt 0:01:21]} 2. Nf3 {[%emt 0:00:14]} Nc6 {[%emt 0:00:05]} 3. Bc4 {[%emt 0:00:34]} Bc5 {[%emt 0:00:07]} 4. b4 {[%emt 0:00:53]} Bxb4 {[%emt 0:00:08][%cal Bc5b4,Bb4a5,Ba5b6,Bb6a7][%mdl 32]} 5. c3 {[%emt 0:00:05]} Ba5 {[%emt 0:00:06]} 6. d4 {[%emt 0:00:21]} d6 {[%emt 0:01:21]} 7. Qb3 {[%emt 0:00:15]} Qd7 {[%emt 0:00:36]} 8. O-O $1 {[%emt 0:00:46][%mdl 4] now scores much better than the old 8.dxe5.} Bb6 $1 {[%emt 0:04:27] C52: Evans Gambit Accepted: 5 c3 Ba5.} 9. Bb5 {[%emt 0:01:26] Strongly threatening d5.} a6 {[%emt 0:04:55] Prevents d5.} (9... exd4 10. cxd4 Kf8 11. d5 $14) 10. Ba4 {[%emt 0:00:11] And now d5 would win.} Ba7 $1 {[%emt 0:04:37] The position is equal.} (10... exd4 11. cxd4 Kf8 12. d5 $14) 11. Qb2 {[%emt 0:00:45]} (11. d5 b5 12. dxc6 Qxc6 $17) 11... b5 {[%emt 0:02:05]} 12. Bc2 {[%emt 0:00:20]} Rb8 {[%emt 0:09:37]} 13. Be3 {[%emt 0:04:10]} Qe7 {[%emt 0:08:35]} 14. a4 {[%emt 0:05:17]} b4 $36 {[%emt 0:16:08][%mdl 2048] Black is pushing.} 15. a5 {[%emt 0:03:09]} bxc3 $1 {[%emt 0:11:46]} 16. Qxc3 {[%emt 0:00:14]} Nxd4 {[%emt 0:01:30]} 17. Nxd4 {[%emt 0:01:48]} exd4 {[%emt 0:00:38]} 18. Bxd4 {[%emt 0:01:19]} Bxd4 {[%emt 0:00:39]} 19. Qxd4 {[%emt 0:01:11]} Nf6 {[%emt 0:05:51] [#]} 20. Qa7 $146 {[%emt 0:02:53]} (20. Nc3 $11 {keeps the balance.}) ({Predecessor:} 20. Nc3 O-O 21. Nd5 Nxd5 22. exd5 Rb5 23. Bd3 Rc5 24. Rfc1 Rd8 25. Rxc5 dxc5 26. Qc4 h6 27. Rb1 Qd6 28. Rb8 Rf8 {½-½ (28) Monotua,R (2234)-Eldridge,M (2261) FICGS email 2017}) 20... Rb4 $1 $17 {[%emt 0:05:05]} 21. Ba4+ {[%emt 0:05:56]} Kd8 {[%emt 0:00:28]} 22. Bc6 {[%emt 0:03:14]} (22. Nd2 $15) 22... Qe5 {[%emt 0:00:12]} ({And not} 22... Nxe4 23. Na3 $15) 23. Nd2 {[%emt 0:07:38]} Qd4 {[%emt 0:02:56]} ({Don't take} 23... Ng4 24. Nf3 Qc5 25. Qxc5 dxc5 26. Rac1 $14) (23... Qc3 $17 24. e5 Qxc6 25. exf6 gxf6) 24. Qxd4 $11 {[%emt 0:06:08]} Rxd4 {[%emt 0:00:11]} 25. Nf3 {[%emt 0:01:45]} Rc4 {[%emt 0:01:27]} 26. Rac1 {[%emt 0:01:00]} Rxc1 {[%emt 0:18:39]} 27. Rxc1 {[%emt 0:00:06]} Bd7 {[%emt 0:00:00]} 28. e5 {[%emt 0:03:31]} Bxc6 {[%emt 0:00:00]} 29. Rxc6 {[%emt 0:01:05]} dxe5 {[%emt 0:00:00]} (29... Kd7 $5 {[%cal Rd7c6]} 30. Rxa6 Rb8 $11) 30. Rxa6 {[%emt 0:01:35][%mdl 4096] Endgame aiming for Ra8+. KRN-KRN} Re8 {[%emt 0:00:00]} 31. Ra8+ {[%emt 0:01:37]} Kd7 {[%emt 0:00:00]} 32. Rxe8 {[%emt 0:00:26]} Nxe8 {[%emt 0:00:00]} 33. Nxe5+ {[%emt 0:00:51] KN-KN} Kd6 {[%emt 0:00:00]} 34. a6 {[%emt 0:03:40] Hoping for a7.} c6 $2 {[%emt 0:00:10] [#]} (34... Kxe5 $2 35. a7 $18) (34... c5 $11 {and Black has nothing to worry.} 35. a7 (35. Nxf7+ Kc7 $14) 35... Nc7 36. Nxf7+ Kc6) 35. Nxf7+ $2 {[%emt 0:00:46]} (35. a7 $1 $18 {[%cal Ra7a8] and the rest is easy.} Nc7 36. Nxf7+ Kd7 37. Kf1) 35... Kc7 $16 {[%emt 0:01:02]} 36. a7 {[%emt 0:01:45]} Kb7 {[%emt 0:00:59] Inhibits a8Q+.} 37. Nd8+ {[%emt 0:00:07]} Kxa7 {[%emt 0:00:07]} 38. Nxc6+ {[%emt 0:00:04]} Kb6 {[%emt 0:00:07]} 39. Ne5 {[%emt 0:00:58]} Kc5 {[%emt 0:00:16]} 40. Kf1 {[%emt 0:00:49]} Kd5 {[%emt 0:00:15]} 41. Ng4 {[%emt 0:00:22]} Ke4 {[%emt 0:00:35]} 42. Ke2 {[%emt 0:01:32]} Nc7 {[%emt 0:00:31]} 43. f3+ {[%emt 0:01:19]} Kd4 {[%emt 0:00:29]} 44. Ne3 {[%emt 0:02:01] Black must now prevent Nf5+.} Ne6 {[%emt 0:00:15]} 45. g3 {[%emt 0:01:19]} Ke5 {[%emt 0:00:24]} 46. Kd3 {[%emt 0:01:02]} g5 {[%emt 0:02:19]} 47. Nc4+ {[%emt 0:03:42]} Kd5 {[%emt 0:00:24]} 48. Ne3+ {[%emt 0:01:38]} Ke5 {[%emt 0:00:06]} 49. Ng2 {[%emt 0:00:04]} h5 {[%emt 0:00:40]} 50. h4 {[%emt 0:01:05]} gxh4 {[%emt 0:01:14]} 51. Nxh4 {[%emt 0:00:14]} Nc5+ {[%emt 0:00:41]} 52. Ke2 {[%emt 0:00:46]} Kd4 $2 {[%emt 0:00:39][%mdl 8192] Black is on the road to losing.} (52... Ne6 $14) 53. Nf5+ $18 {[%emt 0:00:56]} Ke5 {[%emt 0:00:29]} 54. Ng7 {[%emt 0:00:06]} h4 {[%emt 0:00:30]} 55. gxh4 {[%emt 0:00:20]} Kf4 {[%emt 0:00:36]} 56. Nh5+ {[%emt 0:00:14]} Kf5 {[%emt 0:00:06]} 57. Kf2 {[%emt 0:00:31]} Ne6 {[%emt 0:00:33]} 58. Kg3 {[%emt 0:00:56]} (58. Ng3+ $142 Ke5 59. Ne2 Kf6 60. f4 Kg6 61. Kg2 Nd8 62. Ng3 Kf6 63. Kf3) 58... Nd4 {[%emt 0:00:20]} 59. Nf4 {[%emt 0:00:06]} Nc6 {[%emt 0:00:24]} 60. Ng2 {[%emt 0:01:05]} Ne5 {[%emt 0:00:35]} 61. Ne3+ {[%emt 0:00:55]} Kg6 {[%emt 0:00:07]} 62. Ng4 {[%emt 0:00:20]} (62. f4 $142 Nf7 63. f5+ Kh5 64. Ng4 Nd6 65. Nf6+ Kh6 66. Kf4 Nc8 67. Ke4 Nd6+ 68. Ke5 Nf7+ 69. Ke6 Nd8+ 70. Kd7) 62... Nd3 {[%emt 0:00:11]} 63. Nf2 {[%emt 0:00:11]} Nc1 {[%emt 0:00:22]} 64. Kg4 {[%emt 0:00:11]} Ne2 {[%emt 0:00:07]} 65. h5+ {[%emt 0:00:14]} Kh6 {[%emt 0:00:06]} 66. Ne4 {[%emt 0:00:06]} Nd4 {[%emt 0:00:31]} 67. Ng3 {[%emt 0:00:16]} Ne6 {[%emt 0:00:06]} 68. Nf5+ {[%emt 0:00:05]} Kh7 {[%emt 0:00:10]} 69. Kg3 {[%emt 0:00:49]} Ng5 {[%emt 0:00:26]} 70. Kf4 {[%emt 0:00:31]} Nf7 {[%emt 0:00:24]} 71. Kg4 {[%emt 0:00:41]} Ne5+ {[%emt 0:00:19] [#]} 72. Kg3 $1 {[%emt 0:00:07] f4 would kill now.} Nd7 {[%emt 0:00:17]} 73. Kh4 {[%emt 0:00:20] Weighted Error Value: White=0.12 (very precise) /Black=0.33} (73. Kf4 $142 Nc5 74. Kg5) 1-0

[Event "US Masters 2022"]
[Site "Charlotte"]
[Date "2022.11.24"]
[Round "1.11"]
[White "Ramirez, Alejandro"]
[Black "Ouellet, Maili-Jade"]
[Result "1-0"]
[ECO "B21"]
[WhiteElo "2561"]
[BlackElo "2204"]
[Annotator "TA"]
[PlyCount "157"]
[EventDate "2022.11.23"]
[EventType "swiss"]
[EventCountry "USA"]
[SourceTitle "playchess.com"]
[Source "ChessBase"]
[SourceQuality "1"]
[TimeControl "5400+30"]

{[%evp 9,157,0,30,16,17,15,19,0,12,17,21,12,9,6,14,11,4,9,14,12,4,8,12,5,18,0,9,8,20,9,20,0,6,3,35,25,36,12,18,0,0,-11,-11,-11,0,0,0,0,0,0,0,0,0,0,0,0,0,0,0,0,0,0,7,7,7,14,13,13,13,0,0,0,0,0,0,0,0,0,0,0,0,0,0,0,0,0,0,0,0,0,0,0,0,0,0,0,0,0,0,0,0,0,0,0,0,0,0,0,0,0,0,0,0,0,0,0,0,0,0,0,29965,29967,29968,29969,29967,29968,29953,12798,29967,29968,29959,1450,29978,29979,29979,29975,29980,29981,29982,29983,29983,29984,29984,29985,29986,29987,29987,29986,29986,29987]} 1. e4 {[%emt 0:02:09]} c5 {[%emt 0:00:05]} 2. d4 {[%emt 0:00:48]} cxd4 {[%emt 0:00:05]} 3. Qxd4 {[%emt 0:00:03]} Nc6 {[%emt 0:00:12]} 4. Qd3 {[%emt 0:00:02]} Nf6 {[%emt 0:02:22]} 5. Nc3 {[%emt 0:01:17]} d6 {[%emt 0:02:38]} 6. Nf3 {[%emt 0:00:35] B21: Sicilian: 2 f4 and Morra Gambit.} a6 {[%emt 0:01:32]} 7. Be2 {[%emt 0:03:16] 7.Nd5 injects fresh life into this line.} Bg4 {[%emt 0:01:53]} 8. O-O {[%emt 0:00:39] [#] The position is equal.} g6 $146 {[%emt 0:03:04]} ({Predecessor:} 8... e6 9. Bf4 Qc7 10. Rad1 Rd8 11. h3 Bxf3 12. Qxf3 Be7 13. Qg3 O-O 14. Bh6 Ne8 {½-½ (40) Hovhannisyan,R (2634)-Sychev,K (2545) Skopje 2019}) 9. Nd5 {[%emt 0:02:12]} Bg7 {[%emt 0:00:51]} 10. Bg5 {[%emt 0:03:18]} Nxd5 {[%emt 0:01:51]} 11. exd5 {[%emt 0:00:05]} Bxf3 $1 {[%emt 0:01:27]} 12. Qxf3 {[%emt 0:00:06]} (12. Bxf3 {simplifies} Ne5 13. Qb3 Nxf3+ 14. Qxf3 O-O 15. Rae1) 12... Nd4 {[%emt 0:01:28]} 13. Qe4 {[%emt 0:00:31]} h6 {[%emt 0:01:48]} 14. Bd2 {[%emt 0:00:30]} Nxe2+ {[%emt 0:02:07]} 15. Qxe2 {[%emt 0:00:04]} O-O {[%emt 0:00:46]} 16. c3 {[%emt 0:00:27]} Re8 {[%emt 0:01:38]} 17. a4 {[%emt 0:00:46]} Rc8 {[%emt 0:03:08]} 18. Be3 {[%emt 0:01:05]} Qc7 {[%emt 0:05:57]} 19. Rfd1 {[%emt 0:01:20]} Qc4 {[%emt 0:04:51]} 20. Qd2 {[%emt 0:00:44]} Kh7 {[%emt 0:00:34]} 21. a5 {[%emt 0:00:06]} e5 {[%emt 0:06:31]} 22. dxe6 {[%emt 0:01:34]} Rxe6 {[%emt 0:00:06]} 23. Qc2 {[%emt 0:00:58]} d5 {[%emt 0:08:38][%cal Od5d4]} 24. Ra4 {[%emt 0:00:57] Against d4} Qb5 {[%emt 0:00:42][%cal Od5d4]} 25. Raa1 {[%emt 0:14:51]} d4 {[%emt 0:03:08]} 26. Bxd4 {[%emt 0:00:05]} Bxd4 {[%emt 0:00:22]} (26... Re2 {is interesting.} 27. Rd2 Qxa5 28. Rad1 Rxd2 29. Rxd2 Rd8) 27. Rxd4 {[%emt 0:00:03]} Re2 {[%emt 0:00:36] Inhibits b4.} 28. Rd2 {[%emt 0:03:43]} Rce8 {[%emt 0:00:54]} 29. Qd1 {[%emt 0:09:29] Inhibits Re1+.} Rxd2 {[%emt 0:01:27]} 30. Qxd2 $11 {[%emt 0:00:11][%mdl 4096] Endgame KQR-KQR} Re2 {[%emt 0:00:08] Against b4} 31. Qf4 {[%emt 0:00:17]} Qb3 {[%emt 0:03:31]} 32. h4 {[%emt 0:08:58]} Rxb2 {[%emt 0:01:41]} 33. h5 {[%emt 0:00:35]} Rb1+ {[%emt 0:07:04]} 34. Rxb1 {[%emt 0:00:02]} Qxb1+ {[%emt 0:00:06] KQ-KQ} 35. Kh2 {[%emt 0:00:06]} Qb3 {[%emt 0:02:00]} 36. c4 {[%emt 0:03:04]} Kg7 {[%emt 0:04:19]} 37. Qd4+ {[%emt 0:06:17]} Kh7 {[%emt 0:01:13]} 38. hxg6+ {[%emt 0:01:44]} (38. Qd5 $5 Kg7 $8 39. Qd4+ Kg8 40. Qd8+ Kg7 41. Qd4+ $11) 38... fxg6 {[%emt 0:02:28]} 39. Qc5 {[%emt 0:04:32]} Qb2 {[%emt 0:02:57]} 40. Kg3 {[%emt 0:00:25]} Qg7 {[%emt 0:01:44]} 41. Kf4 {[%emt 0:00:38]} Qd7 {[%emt 0:00:33]} 42. Qd5 {[%emt 0:02:11]} Qe7 {[%emt 0:01:10]} 43. g4 {[%emt 0:02:04]} Qc7+ {[%emt 0:02:44]} 44. Ke4 {[%emt 0:01:11]} Qe7+ {[%emt 0:00:24]} 45. Qe5 {[%emt 0:03:21]} Qd7 {[%emt 0:06:04]} 46. f3 {[%emt 0:00:15]} Qf7 {[%emt 0:02:08]} 47. Qd5 {[%emt 0:04:34]} Qe7+ {[%emt 0:00:08]} 48. Qe5 {[%emt 0:08:25]} Qf7 {[%emt 0:00:32]} 49. Qd5 {[%emt 0:01:15]} Qe7+ {[%emt 0:00:06]} 50. Kd4 {[%emt 0:00:04]} Qg7+ {[%emt 0:00:23]} 51. Kd3 {[%emt 0:04:25]} Qe7 {[%emt 0:01:05]} 52. c5 {[%emt 0:00:30]} Qc7 {[%emt 0:01:06]} 53. Kd4 {[%emt 0:01:07]} Qg7+ {[%emt 0:01:44]} 54. Ke4 {[%emt 0:00:29]} Qe7+ {[%emt 0:00:42]} 55. Qe5 {[%emt 0:00:18]} Qf7 {[%emt 0:01:02]} 56. Qd6 {[%emt 0:03:44]} h5 {[%emt 0:00:43]} 57. gxh5 {[%emt 0:01:10]} gxh5 {[%emt 0:00:06]} 58. f4 {[%emt 0:00:06]} h4 {[%emt 0:01:26]} 59. f5 {[%emt 0:01:13]} h3 {[%emt 0:01:41]} 60. Qd3 {[%emt 0:01:13]} Qh5 {[%emt 0:02:29]} (60... h2 $5 61. Qh3+ $8 Kg8 62. Qxh2 Qc4+ 63. Ke5 (63. Kf3 Qc3+ 64. Kf4 Qd4+ 65. Kf3 Qc3+ 66. Ke4 Qc4+ 67. Kf3 Qc3+ $11) 63... Qxc5+ 64. Ke4 Qc6+ 65. Kd4 Qd7+ 66. Ke4 Qc6+ 67. Ke3 Qc3+ 68. Ke4 Qb4+ 69. Kf3 Qc3+ 70. Ke4 Qe1+ 71. Kf4 Qxa5 72. Qg2+ Kf8 73. Qxb7 Kg8 $11) 61. Qd7+ {[%emt 0:00:36]} Kh6 {[%emt 0:00:33] And now ...Qg4+ would win.} 62. Qe6+ {[%emt 0:00:42]} (62. Qxb7 $2 {is the wrong capture.} Qg4+ 63. Kd3 (63. Ke5 $2 h2 $19) 63... Qxf5+ 64. Ke2 h2 $19) 62... Kh7 {[%emt 0:02:54] aiming for ...Qe2+.} 63. Qe7+ {[%emt 0:01:37]} Kh8 {[%emt 0:00:33] ( -> ...Qe2+)} 64. f6 {[%emt 0:00:41][%csl Gf6][%cal Re7g7]} Qg6+ $2 {[%emt 0:01:02][%mdl 8192] White now steadily converts the win.} (64... Qg5 $11 65. Qd6 (65. Qxb7 {is a self mate.} Qg2+ 66. Kf4 Qxb7 67. c6 Qb8+ 68. Kf5 Qc8+ 69. Kf4 h2 70. f7 h1=Q 71. Ke5 Qc7+ 72. Kf5 Qf3+ 73. Kg6 Qcxc6+ 74. Kg5 Qcf6#) 65... Qg6+ 66. Ke3 Qh6+ 67. Kf2 Qh4+ 68. Kf1 Qc4+ 69. Kf2 Qh4+ 70. Kg1 Qg5+ 71. Kf2 Qh4+) 65. Ke5 $1 {[%emt 0:03:17]} h2 {[%emt 0:00:38] [#]} 66. f7 $1 {[%emt 0:00:00]} ({And not} 66. Qxb7 Qh5+ 67. Ke6 Qe8+ 68. Kf5 Qh5+ 69. Ke6 Qe8+ 70. Kf5 Qh5+ 71. Ke6 $11) 66... Qxf7 {[%emt 0:02:32]} 67. Qxf7 {[%emt 0:00:00]} h1=Q {[%emt 0:01:40] KQ-KQ} 68. Qe8+ {[%emt 0:00:00]} (68. Qf6+ $142 Kg8 69. Qb6 Qh2+ 70. Ke6 Qd2 71. Qc7 Qh6+ 72. Kd7 Qh3+ 73. Kd8) 68... Kg7 {[%emt 0:00:00] [#]} 69. Kd6 $1 {[%emt 0:00:00]} Kf6 {[%emt 0:00:16]} 70. Qe6+ {[%emt 0:00:00]} (70. Qe5+ $142 Kg6 71. Qe6+ Kg5 72. Kc7 Kf4 73. Kb8 Qh8+ 74. Kxb7 Qh7+ 75. Kxa6 Qd3+ 76. Ka7 Qh7+ 77. Kb6 Qb1+ 78. Kc7) 70... Kg7 {[%emt 0:00:10]} 71. Kc7 {[%emt 0:00:00] White mates.} Qf3 {[%emt 0:00:39]} 72. Qe7+ {[%emt 0:00:26]} Kg8 {[%emt 0:00:21]} 73. Kb8 {[%emt 0:00:31]} Qc3 {[%emt 0:00:54]} 74. Qc7 {[%emt 0:01:03]} Kf8 {[%emt 0:00:36]} 75. Kxb7 {[%emt 0:00:18]} Qc4 {[%emt 0:00:16]} 76. c6 {[%emt 0:00:15][%cal Bc5c6,Bc6c7][%mdl 32]} Ke8 {[%emt 0:00:40]} 77. Qe5+ {[%emt 0:01:26]} Kf7 {[%emt 0:00:19]} 78. c7 {[%emt 0:00:19]} Qb3+ {[%emt 0:00:15]} 79. Ka7 {[%emt 0:00:14] Weighted Error Value: White=0.04 (flawless) /Black=0.03 (flawless)} 1-0

[Event "US Masters 2022"]
[Site "Charlotte"]
[Date "2022.11.24"]
[Round "1.12"]
[White "Eidelman, Gabriel"]
[Black "Cordova, Emilio"]
[Result "0-1"]
[ECO "E39"]
[WhiteElo "2197"]
[BlackElo "2561"]
[Annotator "TA"]
[PlyCount "86"]
[EventDate "2022.11.23"]
[EventType "swiss"]
[EventCountry "USA"]
[SourceTitle "playchess.com"]
[Source "ChessBase"]
[SourceQuality "1"]
[TimeControl "5400+30"]

{[%evp 12,86,37,31,44,27,32,35,35,35,36,31,34,23,33,25,21,0,22,0,17,4,2,0,0,0,27,18,42,31,43,17,41,9,21,0,12,9,15,17,13,-35,47,-15,42,-14,-14,-23,-24,-34,-29,-52,-31,-21,-20,-21,-25,-94,-88,-96,-91,-91,-91,-463,-485,-493,-476,-459,-416,-1167,-1160,-1113,-1081,-2483,-2466,-1762,-1474]} 1. d4 {[%emt 0:00:04]} Nf6 {[%emt 0:07:47]} 2. c4 {[%emt 0:00:12]} e6 {[%emt 0:00:20]} 3. Nc3 {[%emt 0:00:08]} Bb4 {[%emt 0:00:12]} 4. Qc2 {[%emt 0:00:23]} c5 {[%emt 0:00:33]} 5. dxc5 {[%emt 0:00:18]} O-O {[%emt 0:00:22]} 6. a3 {[%emt 0:00:21]} Bxc5 {[%emt 0:00:09]} 7. Nf3 {[%emt 0:00:14]} a6 {[%emt 0:00:41] 7...d5 is becoming the main line. E39: Nimzo-Indian: Classical: 4...c5 5 dxc5 0-0.} 8. Bg5 {[%emt 0:06:18]} Be7 {[%emt 0:01:03]} 9. e4 {[%emt 0:08:44]} d6 {[%emt 0:00:07] White is slightly better.} 10. Be2 {[%emt 0:02:35]} Nbd7 {[%emt 0:00:20]} 11. O-O {[%emt 0:02:24]} b6 {[%emt 0:01:16]} 12. Rad1 {[%emt 0:06:11][%cal Oe4e5]} Qc7 {[%emt 0:00:47]} 13. Rfe1 {[%emt 0:13:03]} Bb7 {[%emt 0:00:46]} 14. Bf1 {[%emt 0:00:44]} Rac8 {[%emt 0:00:39] [#]} 15. Nd2 $146 {[%emt 0:07:00]} ({Predecessor:} 15. h3 Qb8 16. Rd2 Rfe8 17. Bf4 e5 18. Bg5 h6 19. Bh4 Rc7 20. Qb1 Bc6 21. a4 {½-½ (44) Mohr,S (2530)-Csom,I (2545) Debrecen 1989}) 15... Rfe8 {[%emt 0:07:23]} 16. Qd3 {[%emt 0:02:35]} h6 {[%emt 0:06:32]} 17. Bf4 {[%emt 0:07:04]} Ne5 {[%emt 0:00:19]} 18. Qe2 {[%emt 0:03:28]} Bf8 {[%emt 0:09:22]} 19. Bg3 {[%emt 0:01:53]} Ng6 {[%emt 0:02:39]} 20. h3 {[%emt 0:02:50]} Be7 {[%emt 0:04:14]} 21. Rc1 {[%emt 0:04:34]} Bd8 {[%emt 0:07:36]} 22. Qd3 {[%emt 0:02:58]} Be7 {[%emt 0:05:21]} 23. Be2 {[%emt 0:01:56]} Qb8 {[%emt 0:01:24]} 24. b4 {[%emt 0:03:14]} Red8 {[%emt 0:01:18]} 25. Qe3 {[%emt 0:00:40]} Nd7 {[%emt 0:02:41]} 26. f4 {[%emt 0:03:04]} (26. Red1 $11) 26... a5 {[%emt 0:05:22]} (26... e5 $1 $15 27. f5 Bg5) 27. Kh1 {[%emt 0:01:49]} (27. Qf2 $14) 27... Qa8 {[%emt 0:00:37]} ({Black should play} 27... e5 $11 28. f5 Bg5) 28. Nb5 {[%emt 0:05:39]} (28. Bh5 $14) 28... e5 $11 {[%emt 0:07:28] White must now prevent ...exf4.} 29. f5 {[%emt 0:01:24]} (29. Rcd1 $5 {[%cal Rf4f5]}) 29... Bg5 {[%emt 0:00:53]} 30. Qc3 {[%emt 0:01:29]} Ne7 {[%emt 0:00:30][%cal Bg6e7,Be7f5,Bf5h4,Bh4f3][%mdl 32]} 31. Bf3 {[%emt 0:03:42]} Nf6 {[%emt 0:00:31][%cal Od6d5]} 32. Rcd1 {[%emt 0:00:41]} Bxd2 {[%emt 0:11:15]} (32... axb4 {simplifies} 33. axb4 Bxd2 34. Rxd2 Bxe4 35. Rxd6 Nxf5 36. Rxd8+ Rxd8 37. Bxe5 Bxf3 38. Qxf3 Qxf3 39. gxf3 Nh5) 33. Rxd2 {[%emt 0:00:31] Bh4 is the strong threat.} Bxe4 {[%emt 0:00:44] Threatens to win with ...axb4.} (33... axb4 {simplifies} 34. axb4 Bxe4 35. Rxd6 Nxf5 36. Rxd8+ Rxd8 37. Bxe5 Bxf3 38. Qxf3 Qxf3 39. gxf3 Nh5) 34. Nxd6 {[%emt 0:02:25] [#]} (34. Rxd6 $11 axb4 35. axb4 Bxf3 36. Qxf3) 34... Rxd6 $1 $17 {[%emt 0:00:10]} 35. Rxd6 {[%emt 0:00:47]} Nxf5 {[%emt 0:00:09]} (35... Bxf3 {simplifies} 36. Qxf3 Qxf3 37. gxf3 Nxf5 38. Bxe5 Nxd6 39. Bxd6 axb4 40. Bxb4 Rxc4 41. Rd1 Nh5) 36. Bxe5 {[%emt 0:01:40] aiming for Rxf6.} (36. Rxb6 $2 {perishes.} Nxg3+ 37. Kh2 Nd5 38. Bxe4 Nxe4 $19) 36... Bxf3 {[%emt 0:00:44]} (36... Nxd6 {simplifies} 37. Bxd6 Bxf3 38. Qxf3 Qxf3 39. gxf3 axb4 40. Bxb4 Rxc4 41. Rd1 Nh5) 37. Rd2 {[%emt 0:04:39][%mdl 8192] [#] This costs White the game.} (37. Qxf3 $17 Qxf3 38. gxf3 Nxd6 39. Bxd6) 37... Nh4 $1 $19 {[%emt 0:05:18]} 38. gxf3 {[%emt 0:00:54]} Nxf3 {[%emt 0:00:04]} 39. Rg2 {[%emt 0:00:42]} Rxc4 {[%emt 0:03:37][%cal Bc8c4,Bc4e4,Be4e2][%mdl 96]} ({Avoid the trap} 39... Nxe1 $2 40. Qxe1 Rxc4 41. Kh2 $19) 40. Qa1 {[%emt 0:00:02]} ({Don't blunder} 40. Rxg7+ $2 Kxg7 41. Bxf6+ Kf8 42. Bg7+ Kg8 $19) (40. Qxc4 $142 Nxe1 41. Qa2) 40... Nxe1 {[%emt 0:01:30] Black is clearly winning.} 41. Qxe1 {[%emt 0:00:07]} Re4 {[%emt 0:01:27]} 42. Qg3 {[%emt 0:01:27]} Nh5 {[%emt 0:00:09]} 43. Qc3 {[%emt 0:00:31]} Re2 {[%emt 0:00:12] Weighted Error Value: White=0.57/Black=0.10 (very precise)} 0-1

[Event "US Masters 2022"]
[Site "Charlotte"]
[Date "2022.11.24"]
[Round "1.13"]
[White "Cruz, Cristhian"]
[Black "Rodriguez Rivera, Pedro"]
[Result "1-0"]
[ECO "D35"]
[WhiteElo "2552"]
[BlackElo "2195"]
[Annotator "TA"]
[PlyCount "69"]
[EventDate "2022.11.23"]
[EventType "swiss"]
[EventCountry "USA"]
[SourceTitle "playchess.com"]
[Source "ChessBase"]
[SourceQuality "1"]
[TimeControl "5400+30"]

{[%evp 15,69,24,25,25,21,24,22,39,29,13,35,36,39,30,110,100,131,56,116,118,108,143,135,141,131,128,108,110,95,84,156,136,140,89,215,210,215,185,195,187,191,171,936,911,1222,1191,1185,726,1864,474,2912,2755,29989,29990,29997,29997]} 1. d4 {[%emt 0:07:16]} Nf6 {[%emt 0:00:10]} 2. c4 {[%emt 0:00:15]} e6 {[%emt 0:00:08]} 3. Nc3 {[%emt 0:00:22]} d5 {[%emt 0:00:02]} 4. cxd5 {[%emt 0:00:39]} exd5 {[%emt 0:00:02]} 5. Bg5 {[%emt 0:00:20]} Nbd7 {[%emt 0:00:01]} 6. e3 {[%emt 0:00:40]} Bb4 {[%emt 0:00:03]} 7. Bd3 {[%emt 0:00:47]} O-O {[%emt 0:00:02]} 8. Nge2 {[%emt 0:00:41]} c6 {[%emt 0:00:01]} 9. O-O {[%emt 0:01:15] D35: Queen's Gambit Declined: Exchange Variation.} h6 {[%emt 0:00:21]} 10. Bh4 {[%emt 0:00:42]} Be7 {[%emt 0:00:04]} 11. f3 {[%emt 0:03:17] The position is equal.} Re8 {[%emt 0:00:55]} 12. Kh1 {[%emt 0:02:02]} Nf8 {[%emt 0:13:00]} 13. Qc2 {[%emt 0:03:50]} Nh5 {[%emt 0:05:39]} 14. Bf2 {[%emt 0:18:51] [#]} Nf6 $146 {[%emt 0:05:46]} (14... Ne6 $11) ({Predecessor:} 14... g6 15. e4 dxe4 16. fxe4 Bh4 17. Bg1 Ng7 18. b4 Bg5 19. a4 b6 20. b5 Bd7 {1-0 (47) Butvilas,A (2103)-Barsciauskas,G (1575) Klaipeda 2020}) 15. Rad1 {[%emt 0:02:26] White is more active.} Qa5 {[%emt 0:04:44]} 16. Bg1 {[%emt 0:04:09]} (16. a3 $16) 16... Be6 {[%emt 0:09:40]} (16... c5 $14) 17. e4 $16 {[%emt 0:03:41]} dxe4 {[%emt 0:02:35]} 18. fxe4 {[%emt 0:00:54]} Rad8 {[%emt 0:02:14]} 19. Nf4 {[%emt 0:02:10]} Bg4 {[%emt 0:04:09]} 20. Rde1 {[%emt 0:03:47]} Bb4 {[%emt 0:03:57]} 21. a3 {[%emt 0:05:33]} (21. Qf2 {is more complex.} Ne6 22. e5 Nd7 23. Nfe2) 21... Bxc3 {[%emt 0:00:09]} 22. bxc3 {[%emt 0:00:04]} Qxa3 {[%emt 0:05:03]} (22... Nh5 $142) 23. h3 {[%emt 0:12:33]} Bc8 {[%emt 0:06:58]} 24. Re3 {[%emt 0:02:33]} (24. c4 $142) 24... Qa5 {[%emt 0:05:24] A mistake that costs the game.} (24... Qe7 $16) 25. e5 $18 {[%emt 0:03:03]} Nd5 {[%emt 0:00:29]} 26. Rg3 {[%emt 0:01:21] Strongly threatening Nh5.} Nxf4 {[%emt 0:07:14]} 27. Rxf4 {[%emt 0:00:07]} Qc7 {[%emt 0:00:21]} 28. Be3 {[%emt 0:02:46][%mdl 1024] Black must now prevent Rf6. White has strong compensation.} Kh8 $2 {[%emt 0:04:22]} (28... Re6 29. Bc4 Ng6) 29. Qf2 {[%emt 0:01:22]} Re7 {[%emt 0:05:55]} 30. Rh4 {[%emt 0:05:19][%cal Oh4h6] Intending Rxh6+! and mate.} Re6 {[%emt 0:01:28]} 31. Bg5 {[%emt 0:01:54] This pair of bishops is nice.} Rg6 {[%emt 0:02:04] [#]} 32. Bxg6 {[%emt 0:01:29]} (32. Bxh6 $142 $1 {[%mdl 512]} Bf5 33. Bxg7+ Kxg7 {[#]} 34. Qxf5 $1) 32... Nxg6 {[%emt 0:00:19]} (32... fxg6 $142 33. Bxd8 Qxd8) 33. Bxd8 {[%emt 0:00:08] White threatens Rxh6+ and mate.} Qxd8 {[%emt 0:00:08]} 34. Qxf7 {[%emt 0:00:15]} Qxh4 {[%emt 0:01:07]} 35. Rxg6 {[%emt 0:11:29] Weighted Error Value: White=0.42/Black=0.51} 1-0